Workbook

Sheet 封面
A4: 岳西县岩湾水电站绿色小水电创建工程
A7: 设计概算
A22: 浙江中洲水利水电规划设计有限公司
A24: 二〇二四年三月

Sheet 总概算
A1: 工程量清单汇总表
A2: 工程名称：岩湾水电站绿色小水电建设工程 | D2: 单位：万元
A3: 序号 | B3: 工程或费用名称 | C3: 金额 | D3: 备注
B5: 第一部分 建筑工程 | D5: 单价承包
A6: 一 | B6: 河流生态修复
A7: 二 | B7: 拦河坝改造
A8: 三 | B8: 厂区改造工程
A9: 四 | B9: 管理房改造
A10: 五 | B10: 厂房改造
A11: 六 | B11: 机电设备维护保养
B12: 第二部分 临时工程 | D12: 总价承包
A13: 一 | B13: 施工导流工程
A14: 二 | B14: 施工交通工程
A15: 三 | B15: 临时房屋建筑工程
A16: 四 | B16: 施工用电
A17: 五 | B17: 施工脚手排架工程
A18: 六 | B18: 其他临时工程
A19: 合计

Sheet 工程量清单 (hidden)
A1: 岩湾水电站绿色创建工程量清单
A2: 一 | B2: 项目名称 | C2: 规格 | D2: 单位 | E2: 数量 | F2: 单价 | G2: 合价 | H2: 备注
A3: 一 | B3: 河流生态修复 | G3: =SUM(G4,G14,G23,G24) -> 28.78
A4: 1 | B4: 新建生态堰坝 | G4: =SUM(G5:G13) -> 20.28
B5: 覆盖层开挖及出渣 | D5: m3 | E5: 500 | F5: 17.77 | G5: =ROUND(E5,2)*ROUND(F5,2)/10000 -> 0.89
B6: 弱风化石基础开挖 | D6: m3 | E6: 320 | F6: 44.68 | G6: 1.43
B7: C25埋石砼堰体（长45m） | D7: m3 | E7: 190 | F7: 518.71 | G7: 9.86
B8: C25砼防渗墙(长35m) | D8: m³ | E8: 80 | F8: 608.57 | G8: 4.87
B9: 坝顶M30水泥砂浆镶嵌鹅卵石（φ80） | D9: m2 | E9: 45 | F9: 121.62 | G9: 0.55
B10: 钢筋制安（锚筋） | D10: t | E10: 0.50 | F10: 6918.16 | G10: 0.35
B11: 模板 | D11: m2 | E11: =(45+35)*2*2 -> 320 | F11: 59.78 | G11: 1.91
B12: DN500放钢管（长约4m，壁厚8mm,配12mm厚法兰闷头） | D12: 根 | E12: 1 | F12: 3000.00 | G12: 0.30
B13: 测流堰槽Q235钢板(壁厚8mm) | D13: t | E13: 0.20 | F13: 6500.00 | G13: 0.13
A14: 2 | B14: 生态流量监测设施升级改造 | D14: 项 | E14: 1 | G14: =SUM(G15:G22) -> 5.50
B15: DN150镀锌钢管立杆及DN100镀锌钢管支杆（DN150立杆长3m，支杆长1m，包括基础、钢板、螺母等） | D15: 套 | E15: 1 | F15: 2500 | G15: =ROUND(E15,2)*ROUND(F15,2)/10000 -> 0.25
B16: 摄像头（分辨率不低于1920x1080像素。视频帧率不小于12帧/秒，码率不低于1Mbps ） | D16: 只 | E16: 1 | F16: 6000 | G16: 0.60
B17: 水位传感器（精度±0.1%量程：0m-15m） | D17: 只 | E17: 1 | F17: 4000 | G17: 0.40
B18: 控制箱（400*300*150mm） | D18: 只 | E18: 1 | F18: 2000 | G18: 0.20
B19: 数据采集处理终端（含采集软件、满足接入省厅监控平台） | D19: 套 | E19: 1 | F19: 20000 | G19: 2.00
B20: 硬盘录像机（包含2T硬盘） | D20: 套 | E20: 1 | F20: 8000 | G20: 0.80
B21: 二年质保费用 | D21: 项 | E21: 1 | F21: 10000 | G21: 1.00
B22: 其他辅材 | D22: 项 | E22: 1 | F22: 2500 | G22: 0.25
A23: 3 | B23: 库区垃圾清理 | D23: 项 | E23: 1 | F23: 5000 | G23: 0.50
A24: 4 | B24: 大坝下游河道清理(堆放至河岸) | D24: m³ | E24: 2500 | F24: 10 | G24: 2.50
A26: 二 | B26: 拦河坝改造 | G26: =SUM(G27:G32) -> 9.05
A27: 1 | B27: 大坝左坝顶不锈钢栏杆 | C27: 高90cm | D27: m | E27: 38 | F27: 250 | G27: =ROUND(E27,2)*ROUND(F27,2)/10000 -> 0.95
A28: 2 | B28: 大坝不锈钢标牌 | C28: 1.8m×2m | D28: 块 | E28: 4 | F28: 5000 | G28: 2.00
A29: 3 | B29: 大坝水力翻板闸门维修 | C29: 8m×3.5m | D29: 块 | E29: 12 | F29: 3000 | G29: 3.60 | H29: 金属结构防腐、止水橡皮更换
A30: 4 | B30: 坝面杂草、河面清理及美化 | D30: 项 | E30: 1 | F30: 10000 | G30: 1.00
A31: 5 | B31: 上坝道路清理维修 | D31: 项 | E31: 1 | F31: 5000 | G31: 0.50
A32: 6 | B32: 上坝道路太阳能路灯 | C32: 80W、高6m | D32: 盏 | E32: 4 | F32: 2500 | G32: 1.00
A33: 三 | B33: 厂区改造
A34: 1 | B34: 进厂公路改造 | C34: 长约100m | G34: =SUM(G35:G39) -> 
B35: 路边清理、路面维护 | D35: km | E35: 0.1 | F35: 10000 | G35: =ROUND(E35,2)*ROUND(F35,2)/10000 -> 0.10 | O35: 1.1
B36: 挡土墙基础开挖 | D36: m³ | E36: 110 | F36: =#REF! -> 
B37: M10浆砌河卵石挡土墙 | C37: 长约100m | D37: m³ | E37: 110 | G37: 0.00 | H37: 不勾缝、不漏浆
B38: C25砼排水沟 | D38: m³ | E38: 25 | G38: 0.00
B39: 太阳能路灯 | C39: 80W、高6m | D39: 盏 | E39: 6 | F39: 2500 | G39: 1.50
A40: 2 | B40: 厂区大门改造
B41: 厂区大门口工棚拆除（3.05×12m） | D41: ㎡
B42: 厂区大门及北围墙拆除 | D42: m
B43: 厂区大门砌筑 | D43: m³
B44: 厂区大门大理石铺贴 | D44: ㎡
B45: 厂区大门口C30砼地坪 | D45: ㎡
B46: 厂区电动伸缩大门 | D46: 套 | E46: 1
A47: 3 | B47: 新建厂区围墙 | C47: 高2.2m | D47: m | E47: 38 | H47: 含基础、乳胶漆及琉璃瓦
A48: 4 | B48: 厂区围墙乳胶漆 | C48: 高1.9m | D48: ㎡ | E48: =115*1.9 -> 218.5
A49: 5 | B49: 厂区无砂混凝土地面 | D49: ㎡
A50: 6 | B50: 厂区绿化 | D50: ㎡
A51: 7 | B51: 厂区排水沟 | D51: m | E51: 160
A52: 8 | B52: 厂区宣传栏 | C52: 9m×2.6m | D52: 块 | E52: 1
A53: 9 | B53: 厂区停车棚 | C53: 8.1m×？ | D53: ㎡
A54: 10 | B54: 厂区路灯改造 | C54: 80W | D54: 盏 | E54: 8 | H54: 改太阳能路灯
A55: 11 | B55: 排水涵管 | D55: m | E55: 12
A56: 12 | B56: 新增路沿石 | C56: 600×200×100 | D56: m | E56: 50
A57: 13 | B57: 路沿石拆除安装 | D57: m
A58: 14 | B58: 厂区大门不锈钢字 | D58: 套 | E58: 1
A59: 15 | B59: 户外垃圾箱（不锈钢镀锌板，四分类一体款，加厚通用版） | D59: 座 | E59: 1 | F59: 5000
A61: 四 | B61: 管理房改造
A62: 1 | B62: 管理房外立面维修
A63: 2 | B63: 管理房钢木门更换 | C63: 2.45×0.8m | D63: 扇 | E63: 10 | H63: 盼盼防盗门
A64: 3 | B64: 管理房照明灯具更换 | D64: 盏 | E64: 20
A65: 4 | B65: 管理房屋顶防水 | D65: ㎡ | E65: =21*8.9+6*7 -> 228.9
A66: 5 | B66: 管理房檐口维修 | D66: m | E66: =21*2+8.9*2 -> 59.8
A67: 6 | B67: 管理房排水系统维修 | D67: 项 | E67: 1 | H67: 含屋顶、卫生间、厨房排水及化粪池
A68: 7 | B68: 管理房一楼卫生间改造 | D68: 项 | E68: 1 | H68: 含卫生间瓷砖及洁具
A69: 8 | B69: 管理房走廊护栏维修 | D69: 米 | E69: =6+7.1*2+14.5+1.2 -> 35.9
A70: 9 | B70: 管理房走廊顶棚铝方管吊顶 | D70: ㎡ | E70: =1.2*(6.8+14+14.4) -> 42.24
A71: 10 | B71: 管理房餐厅吊顶 | C71: 集成吊顶 | D71: ㎡ | E71: =3.6*3.8 -> 13.68
A72: 11 | B72: 管理房窗户纱窗 | D72: 个 | E72: 22
A73: 五 | B73: 厂房改造
A74: 1 | B74: 厂房屋顶电站标牌 | D74: 套 | E74: 1
A75: 2 | B75: 厂房正立面铝塑板装饰 | D75: ㎡
A76: 3 | B76: 水轮机层地面砖铺贴 | D76: ㎡
A77: 4 | B77: 仓库隔墙砌筑 | C77: 墙厚 cm | D77: ㎡ | H77: 含乳胶漆
A78: 5 | B78: 仓库防火门 | D78: 扇 | E78: 2
A79: 6 | B79: 副厂房防火门更换 | C79: 97×24.1、14.9×241、98×241、100×239、149×239、148.5×240 | D79: 扇 | E79: 6
A80: 7 | B80: 副厂房矿棉板吊顶 | D80: ㎡ | E80: =6.1*(22.3-0.5+4.25) -> 158.905 | H80: 轻钢龙骨石膏板
A81: 8 | B81: 主副厂房屋面更换 | D81: ㎡
A82: 9 | B82: 主副厂房排水系统维修 | D82: 项 | E82: 1
A83: 10 | B83: 控制室墙面吸音板铺装 | D83: ㎡ | E83: =3.5*(8.8+6.1)*2 -> 104.3
A84: 11 | B84: 主副厂房乳胶漆 | D84: ㎡
A85: 12 | B85: 厂房卫生间隔墙砌筑（含窗户封堵、地面升高部分） | C85: 封窗户2.0×1.8+1.5×1.55、卫生间1.5×2.4 | D85: ㎡
A86: 13 | B86: 厂房卫生间瓷砖铺贴 | D86: ㎡
A87: 14 | B87: 厂房卫生间洁具（蹲便器、洗手池） | D87: 套 | E87: 1
A88: 15 | B88: 厂房卫生间供排水及化粪池 | D88: 项 | E88: 1
A89: 16 | B89: 厂房照明改造 | C89: 控制室：26盏 厂房：10盏 蝶阀8盏 | D89: 盏 | E89: 50
A90: 17 | B90: 发电机层地面清洁处理 | D90: 项 | E90: 1
A91: 18 | B91: 高低压室绝缘垫铺设 | C91: 厚4mm，宽1m | D91: m | E91: =7*2+2*2+6.6*2+2.5*2+2.5*2 -> 41.2
A92: 19 | B92: 厂房侧立面装饰 | D92: ㎡
A93: 20 | B93: 厂房电动提升大门（带小门） | C93: 长宽 | D93: 樘 | E93: 1
A94: 21 | B94: 大门雨棚钢化玻璃更换 | C94: 4.5×2m | D94: ㎡ | E94: =4.5*2 -> 9
A95: 22 | B95: 升压站地面修整 | D95: 项 | E95: 1
A96: 23 | B96: 应急物资仓库 | C96: 长×宽×高 | D96: 项 | E96: 1
A97: 六 | B97: 机电设备改造
A98: 1 | B98: 机电设备维修、维护
A99: 1.1 | B99: DN150伸缩节更换 | C99: KXT型 | D99: 个 | E99: 8
A100: 1.2 | B100: DN150闸阀更换 | C100: Z45X-16Q | D100: 个 | E100: 2
A101: 1.3 | B101: 冷却水管道加固 | D101: 处 | E101: 2
A102: 1.4 | B102: 发电机层盖板刷漆 | D102: 项 | E102: 1
A103: 1.5 | B103: 水机层盖板刷漆 | D103: 项 | E103: 1
A104: 1.6 | B104: 机电设备刷漆 | D104: 项 | E104: 1
A105: 1.7 | B105: 油水气管道刷漆 | D105: 项 | E105: 1
A106: 1.8 | B106: 升压站构架、设备刷漆 | D106: 项 | E106: 1
A107: 1.9 | B107: 仓库货架 | C107: 200*200*60cm | D107: 组 | E107: 7
A108: 1.10 | B108: 厂房值班室空调安装 | C108: KTF-35GW | D108: 台 | E108: 1
A109: 2 | B109: 标识标牌
A110: 2.1 | B110: 升压站标线、标牌、警示牌等制作安装 | C110: 相关规范 | D110: 项 | E110: 1 | H110: 不锈钢材质
A111: 2.2 | B111: 厂房标线、标牌、警示牌、巡视道路图等制作 | C111: 相关规范 | D111: 项 | E111: 1 | H111: 不锈钢材质
A112: 2.3 | B112: 油水气管道标识牌 | C112: 相关规范 | D112: 项 | E112: 1 | H112: 不锈钢材质

Sheet 建筑工程
A1: 第一部分 建筑工程工程量清单
A2: 工程名称：岩湾水电站绿色小水电建设工程
A3: 编号 | B3: 工程或费用名称 | C3: 单位 | D3: 数量 | E3: 单价(元) | F3: 合计(万元) | G3: 备注
B4: 第一部分 建筑工程 | F4: 0.00
A5: 一 | B5: 河流生态修复 | F5: 0.00
A6: 1 | B6: 坝下游河道砂砾石清挖(堆放至河岸) | C6: m3 | D6: 2500
A7: 2 | B7: 库区垃圾清理 | C7: 项 | D7: 1
A8: 3 | B8: 生态堰坝
A9: 3.1 | B9: 覆盖层开挖及出渣 | C9: m³ | D9: 500
A10: 3.2 | B10: 弱风化石基础开挖 | C10: m³ | D10: 320
A11: 3.3 | B11: C25埋石砼堰体（埋石率不大于25%） | C11: m³ | D11: 236
A12: 3.4 | B12: C25砼防渗墙 | C12: m³ | D12: 80
A13: 3.5 | B13: 坝顶M30水泥砂浆镶嵌鹅卵石（φ80） | C13: m2 | D13: 45
A14: 3.6 | B14: 钢筋制安（锚筋） | C14: t | D14: 0.5
A15: 3.7 | B15: 模板 | C15: m2 | D15: 320
A16: 3.8 | B16: DN500放钢管（长约4m，配12mm厚法兰闷头） | C16: 根 | D16: 1
A17: 3.9 | B17: 测流堰槽Q235钢板(壁厚8mm) | C17: t | D17: 0.2
A18: 4 | B18: 生态流量监测设施升级改造
A19: 4.1 | B19: DN150镀锌钢管立杆及DN100镀锌钢管支杆（DN150立杆长3m，支杆长1m，包括基础、钢板、螺母等） | C19: 套 | D19: 1
A20: 4.2 | B20: 摄像头（分辨率不低于1920x1080像素。视频帧率不小于12帧/秒，码率不低于1Mbps ） | C20: 只 | D20: 1
A21: 4.3 | B21: 水位传感器（精度±0.1%量程：0m-15m） | C21: 只 | D21: 1
A22: 4.4 | B22: 控制箱（400*300*150mm） | C22: 只 | D22: 1
A23: 4.5 | B23: 数据采集处理终端（含采集软件、满足接入省厅监控平台） | C23: 套 | D23: 1
A24: 4.6 | B24: 硬盘录像机（包含2T硬盘） | C24: 套 | D24: 1
A25: 4.7 | B25: 二年质保费用 | C25: 项 | D25: 1
A26: 4.8 | B26: 其他辅材 | C26: 项 | D26: 1
A27: 二 | B27: 拦河坝改造 | F27: 0.00
A28: 1 | B28: 标志标牌（不锈钢标牌，1.8m×2m） | C28: 块 | D28: 4
A29: 2 | B29: 大坝左坝顶不锈钢栏杆（DN50,高90cm) | C29: m | D29: 38
A30: 3 | B30: 水力翻板闸门维修 （8m×3.5m，金属结构防腐、止水橡皮更换） | C30: 块 | D30: 12
A31: 4 | B31: 坝面杂草、河面清理及美化 | C31: 项 | D31: 1
A32: 5 | B32: 上坝道路清理维修 | C32: 项 | D32: 1
A33: 6 | B33: 上坝道路太阳能路灯（80W、高6m，含基础、安装材料等所有内容） | C33: 盏 | D33: 4
A34: 三 | B34: 厂区改造工程
A35: 1 | B35: 进厂公路改造
A36: 1.1 | B36: 路边清理、路面整平 | C36: m | D36: 100
A37: 1.2 | B37: 厂区沥青路面（含路基稳定层，路面宽3.5m） | C37: m2 | D37: 350
A38: 1.3 | B38: 挡土墙基础开挖 | C38: m³ | D38: 55
A39: 1.4 | B39: M10浆砌河卵石挡土墙（不勾缝、不漏浆） | C39: m³ | D39: 110
A40: 1.5 | B40: 山边C25砼排水沟 | C40: m³ | D40: 15
A41: 1.6 | B41: 大门口人行上山台阶C25砼 | C41: m³ | D41: 12
A42: 1.7 | B42: 模板 | C42: m2 | D42: 108
A43: 1.8 | B43: 公路边太阳能路灯（80W、高6m，含基础、安装材料等所有内容） | C43: 盏 | D43: 6
A44: 2 | B44: 厂区大门改造
A45: 2.1 | B45: 厂区大门口工棚拆除清运（3.05m×12m） | C45: 项 | D45: 1
A46: 2.2 | B46: 厂区大门及北围墙拆除清运 | C46: 项 | D46: 1
A47: 2.3 | B47: 基础开挖 | C47: m³ | D47: 20
A48: 2.4 | B48: 厂区大门柱及电动门暗箱段基础（C20砼） | C48: m³ | D48: 6
A49: 2.5 | B49: 厂区大门柱及电动门暗箱砌筑（砖砌体） | C49: m³ | D49: 8
A50: 2.6 | B50: 厂区大门柱及暗箱钢筋砼板压顶 | C50: m³ | D50: 1
A51: 2.7 | B51: 厂区大门楼大理石铺贴（（含底层砂浆抹面） | C51: m2 | D51: 60
A52: 2.8 | B52: 厂区大门口C30砼地坪（厚150） | C52: m2 | D52: 80
A53: 2.9 | B53: 模板 | C53: m2 | D53: 35
A54: 2.10 | B54: 厂区电动伸缩大门（不锈钢，门口宽4.0m） | C54: 套 | D54: 1
A55: 2.11 | B55: 厂区大门不锈钢字（岩湾水电站） | C55: 套 | D55: 1
A56: 3 | B56: 厂区综合整治
A57: 3.1 | B57: 厂区杂草杂物清理 | C57: 项 | D57: 1
A58: 3.2 | B58: 新建围墙基础开挖（含余土回填) | C58: m³ | D58: 41.8
A59: 3.3 | B59: 新建围墙砌筑C20砼基础 | C59: m³ | D59: 11.4
A60: 3.4 | B60: 新建围墙砌筑(高2.2m,24墙体) | C60: m³ | D60: 26
A61: 3.5 | B61: 新建围墙乳胶漆(高2.2m,含底层砂浆抹面) | C61: m | D61: 167.2
A62: 3.6 | B62: 新建围墙墙顶琉璃瓦(含底层砂浆抹面) | C62: m | D62: 38
A63: 3.7 | B63: 老围墙乳胶漆（高1.9m，含清面及底层砂浆抹面） | C63: m2 | D63: 218.5
A64: 3.8 | B64: 厂区无砂混凝土地面（C30-1，厚度10cm,青色） | C64: m2 | D64: 750
A65: 3.9 | B65: 原绿化带改造（修枝、填土、增补、更换树苗等） | C65: m2 | D65: 240
A66: 3.10 | B66: 新增绿化（含整平、填土、绿植、养护等） | C66: m2 | D66: 550
A67: 3.11 | B67: 新增绿化带边沿花岗侧石安装（600×200×100） | C67: m | D67: 60
A68: 3.12 | B68: C25砼排水沟（160m长，断面300*400，厚度150)） | C68: m³ | D68: 32
A69: 3.13 | B69: 排水沟盖板（400*600铸铁盖板） | C69: m | D69: 60
A70: 3.14 | B70: 模板 | C70: m2 | D70: 197.6
A71: 3.15 | B71: 厂区宣传栏（9m×2.6m，不锈钢框，钢化玻璃） | C71: 块 | D71: 1
A72: 3.16 | B72: 厂区停车棚（12m×6m)，膜结构拉杆式） | C72: m2 | D72: 72
A73: 3.17 | B73: 厂区路灯改造(80W，改为太阳能路灯） | C73: 盏 | D73: 8
A74: 3.18 | B74: 排水涵管（DN300波纹管） | C74: m | D74: 12
A75: 3.19 | B75: 新增路缘石（600×200×100，花岗侧石） | C75: m | D75: 50
A76: 3.20 | B76: 原路缘石拆除重装（600×200×100） | C76: m | D76: 100
A77: 3.21 | B77: 原挡土墙C20砼压顶（300厚，600宽，长60m） | C77: m³ | D77: 6
A78: 3.22 | B78: 原挡土墙沟缝美化 | C78: m2 | D78: 170
A79: 3.23 | B79: U型度锌钢护栏杆（绿化带隔离栏杆，高0.6m) | C79: m | D79: 60
A81: 四 | B81: 管理房改造 | F81: 0.00
A82: 1 | B82: 外立面维修（保留原色调，清洗、修补） | C82: 项 | D82: 1
A83: 2 | B83: 钢木门更换（规格0.8m×2.45m,盼盼防盗门） | C83: 扇 | D83: 10
A84: 3 | B84: 照明灯具更换 | C84: 盏 | D84: 20
A85: 4 | B85: 屋顶防水（SBS防水层） | C85: m2 | D85: 228.9
A86: 5 | B86: 檐口维修（清洗、更换破损面砖） | C86: m | D86: 59.8
A87: 6 | B87: 排水系统维修 | C87: 项 | D87: 1
A88: 7 | B88: 一楼两个卫生间改造（3.5m*1.4m,含卫生间瓷砖、吊顶、灯具及蹲式大便器、台式洗手盆、洁具等） | C88: 项 | D88: 1
A89: 8 | B89: 走廊护栏维修 | C89: m | D89: 35.9
A90: 9 | B90: 走廊顶棚铝方管吊顶 | C90: m2 | D90: 42.24
A91: 10 | B91: 餐厅更换吊顶（集成吊顶） | C91: m2 | D91: 13.68
A92: 11 | B92: 窗户纱窗 | C92: 个 | D92: 22
A93: 12 | B93: 室外化粪池（1.5m*1m*1m,含给排水管，阀门等） | C93: 个 | D93: 1
A94: 五 | B94: 厂房改造 | F94: 0.00
A95: 1 | B95: 厂房屋顶电站标牌 | C95: 套 | D95: 1
A96: 2 | B96: 主副厂房屋面更换(75mm厚岩棉夹芯板，红或灰色) | C96: m2 | D96: 512
A97: 3 | B97: 厂房正立面铝塑板装饰 | C97: m2 | D97: 115.8
A98: 4 | B98: 厂房下游立面喷灰色真石漆装饰（水下墙段） | C98: m2 | D98: 226
A99: 5 | B99: 发电机层机层地面砖清洁处理 | C99: 项 | D99: 1
A100: 6 | B100: 水轮机层地面砖铺贴 | C100: m2 | D100: 206
A101: 7 | B101: 副厂房负一层地面砖铺贴 | C101: m2 | D101: 169
A102: 8 | B102: 水机层副厂房仓库隔墙24砖砌筑 | C102: m³ | D102: 13
A103: 9 | B103: 仓库墙面抹灰、涂乳胶漆面层 | C103: m2 | D103: 106
A104: 10 | B104: 仓库防火门制安（1200*2100） | C104: m2 | D104: 5.04
A105: 11 | B105: 发电机层副厂房防火门更换(6扇，含原门拆除外运） | C105: m2 | D105: 18
A106: 12 | B106: 发电机层副厂房矿棉板吊顶（轻钢龙骨矿棉板） | C106: m2 | D106: 158.905
A107: 13 | B107: 主副厂房排水系统维修 | C107: 项 | D107: 1
A108: 14 | B108: 控制室墙面吸音板铺装 | C108: m2 | D108: 104.3
A109: 15 | B109: 主副厂房内墙乳胶漆 | C109: m2 | D109: 1944
A110: 16 | B110: 厂房卫生间隔墙砌筑（含窗户封堵、地面台高） | C110: m³ | D110: 3
A111: 17 | B111: 厂房卫生间墙面、地面瓷砖铺贴（含抹灰） | C111: m2 | D111: 31
A112: 18 | B112: 厂房卫生间洁具（蹲便器、洗手池） | C112: 套 | D112: 1
A113: 19 | B113: 厂房卫生间供排水及化粪池（1.5m*1m*1m） | C113: 项 | D113: 1
A114: 20 | B114: 厂房照明改造（含灯具、开关、接线盒等） | C114: 盏 | D114: 50
A115: 21 | B115: 发电机层地面清洁处理 | C115: 项 | D115: 1
A116: 23 | B116: 厂房电动提升大门（带小门，门洞3.6m*4.5m） | C116: 樘 | D116: 1
A117: 24 | B117: 大门雨棚钢化玻璃更换(10mm厚钢化玻璃) | C117: m2 | D117: 9
A118: 25 | B118: 升压站地面修整 | C118: 项 | D118: 1
A119: 六 | B119: 机电设备维护保养 | F119: 0.00
A120: 1 | B120: 机电设备维护
A121: 1.1 | B121: 发电机层盖板刷漆 | C121: 项 | D121: 1
A122: 1.2 | B122: 水机层盖板刷漆 | C122: 项 | D122: 1
A123: 1.3 | B123: 机电设备刷漆 | C123: 项 | D123: 1
A124: 1.4 | B124: 油水气管道刷漆 | C124: 项 | D124: 1
A125: 1.5 | B125: 升压站构架、设备刷漆 | C125: 项 | D125: 1

Sheet 临时工程
A1: 第二部分 临时工程工程量清单
A2: ='建筑工程 '!A2 -> 工程名称：岩湾水电站绿色小水电建设工程
A3: 序号 | B3: 工程或费用名称 | C3: 单位 | D3: 数量 | E3: 单价（元） | F3: 合计（万元） | G3: 备注
A4: 第二部分 | B4: 临时工程
A5: 一 | B5: 施工导流工程
B6: 生态堰坝清基排水 | C6: 处 | D6: 1
B7: 编织袋土围堰填筑 | C7: m3 | D7: 280
B8: 编织袋围堰拆除 | C8: m3 | D8: =D7 -> 280
A9: 二 | B9: 施工交通工程 | C9: 元
B10: 临时施工道路 | C10: km | D10: 0
A11: 三 | B11: 临时房屋建筑工程 | C11: 元
B12: 施工仓库 | C12: m2 | D12: 100
B13: 办公、生活、 文化福利用房 | C13: 项 | D13: 1
A14: 四 | B14: 施工用电 | C14: 元
B15: 施工用电接入 | C15: 项 | D15: 1
A16: 五 | B16: 施工脚手排架工程 | C16: 项 | D16: 1
A17: 六 | B17: 其他临时工程 | C17: 项 | D17: 1
